bitfinex-derivatives/quotes_BTCF0:USTF0_20251108
["timestamp","ask_amount","ask_price","bid_price","bid_amount"]
[1762604139441,0.03577487,101920.0,101910.0,0.86271265]
[1762604140034,0.03577487,101920.0,101910.0,0.61739265]
[1762604140439,0.03577487,101920.0,101910.0,0.86271265]
[1762604141039,0.03577487,101920.0,101910.0,0.61739265]
[1762604141236,0.07904487,101920.0,101910.0,0.51921285]
[1762604141541,0.09192487,101920.0,101910.0,0.61739265]
[1762604141743,0.14388866,101920.0,101910.0,0.61739265]
[1762604142144,0.09192487,101920.0,101910.0,0.61739265]
[1762604142343,0.14388866,101920.0,101910.0,0.61739265]
[1762604142647,0.24205876,101920.0,101910.0,0.61739265]
[1762604143843,0.13100866,101920.0,101910.0,0.61739265]
[1762604144144,0.07904487,101920.0,101910.0,0.61739265]
[1762604144350,0.13100866,101920.0,101910.0,0.61739265]
[1762604145446,0.22917876,101920.0,101910.0,0.61739265]
[1762604145647,0.13100866,101920.0,101910.0,0.61739265]
[1762604146238,0.10980866,101920.0,101910.0,0.61739265]
[1762604146442,0.03577487,101920.0,101910.0,0.61739265]
[1762604148050,0.03577487,101920.0,101910.0,0.86271265]
[1762604148251,0.03577487,101920.0,101910.0,0.7215155]
[1762604148453,0.03577487,101920.0,101910.0,0.9668355]
[1762604149251,0.00077487,101920.0,101910.0,0.9668355]
[1762604149452,0.01500748,101930.0,101920.0,0.1265301]
[1762604149653,0.01500748,101930.0,101920.0,0.6955758]
[1762604149847,0.01500748,101930.0,101920.0,0.9408558]
[1762604150646,0.01800748,101930.0,101920.0,0.9408558]
[1762604151155,0.17176798,101930.0,101920.0,0.6955758]
[1762604153358,0.07360748,101930.0,101920.0,0.6955758]
[1762604154052,0.07360748,101930.0,101920.0,0.9408558]
[1762604154356,0.01800748,101930.0,101920.0,0.9408558]
[1762604154540,0.01800748,101930.0,101920.0,0.6955758]
[1762604154948,0.01800748,101930.0,101920.0,0.9408558]
[1762604155547,0.01800748,101930.0,101920.0,0.7326101]
[1762604155746,0.03933748,101930.0,101920.0,0.6955758]
[1762604156050,0.17209798,101930.0,101920.0,0.6955758]
[1762604157856,0.07393748,101930.0,101920.0,0.6955758]
[1762604158056,0.01800748,101930.0,101920.0,0.6955758]
[1762604158247,0.01800748,101930.0,101920.0,0.9408558]
[1762604159753,0.01800748,101930.0,101920.0,0.6955758]
[1762604159954,0.01800748,101930.0,101920.0,0.9408558]
[1762604160355,0.01800748,101930.0,101920.0,0.7326101]
[1762604160660,0.01800748,101930.0,101920.0,0.6955758]
[1762604161157,0.01800748,101930.0,101920.0,0.9408558]
[1762604161355,0.06966574,101950.0,101940.0,0.0981509]
[1762604161560,0.05651,101960.0,101950.0,0.0981412]
[1762604161755,0.02502,101960.0,101950.0,0.9123869]
[1762604161962,0.02502,101960.0,101950.0,0.6671869]
[1762604162363,0.06877,101960.0,101950.0,0.56306405]
[1762604163464,0.06977,101960.0,101950.0,0.56306405]
[1762604164468,0.04866,101960.0,101950.0,0.56306405]
[1762604164665,0.01326,101960.0,101950.0,0.9123869]
[1762604166356,0.01326,101960.0,101950.0,0.6671869]
[1762604166764,0.01326,101960.0,101950.0,0.9123869]
[1762604166964,0.02675,101960.0,101950.0,0.9123869]
[1762604167666,0.04939,101960.0,101950.0,0.80826405]
[1762604167966,0.02675,101960.0,101950.0,0.80826405]
[1762604168169,0.02675,101960.0,101950.0,0.71266405]
[1762604168365,0.01326,101960.0,101950.0,1.0619869]
[1762604168962,0.01363702,101970.0,101950.0,1.0619869]
[1762604169265,0.01363702,101970.0,101960.0,0.6671774]
[1762604169266,0.00014702,101970.0,101960.0,0.6671774]
[1762604169669,0.01231717,101980.0,101970.0,0.0981195]
[1762604169966,0.03613,101990.0,101980.0,0.0981124]
[1762604170173,0.05724,101990.0,101980.0,0.9122781]
[1762604170358,0.05724,101990.0,101980.0,0.6671581]
[1762604170871,0.1553428,101990.0,101980.0,0.56303525]
[1762604171256,0.16741523,101990.0,101980.0,0.56303525]
[1762604171462,0.16741523,101990.0,101980.0,0.6671581]
[1762604172264,0.16741523,101990.0,101980.0,0.6681581]
[1762604172967,0.16741523,101990.0,101980.0,0.6701581]
[1762604173166,0.27153808,101990.0,101980.0,0.4619124]
[1762604173360,0.27153808,101990.0,101980.0,0.56603525]
[1762604173768,0.14630523,101990.0,101980.0,0.56603525]
[1762604173958,0.06931243,101990.0,101980.0,0.6701581]
[1762604174163,0.06931243,101990.0,101980.0,0.56603525]
[1762604174961,0.06931243,101990.0,101980.0,0.6701581]
[1762604175162,0.06931243,101990.0,101980.0,0.56603525]
[1762604175570,0.06931243,101990.0,101980.0,0.6701581]
[1762604181372,0.02556243,101990.0,101980.0,0.6701581]
[1762604181973,0.02556243,101990.0,101980.0,0.9152781]
[1762604182176,0.01207243,101990.0,101980.0,0.9717281]
[1762604182474,0.03627702,102000.0,101990.0,0.0981028]
[1762604182674,0.03627702,102000.0,101990.0,0.56282294]
[1762604183077,0.05738702,102000.0,101990.0,0.56282294]
[1762604183767,0.01363702,102000.0,101990.0,0.56282294]
[1762604183971,0.02598321,102000.0,101990.0,0.56282294]
[1762604184172,0.04862321,102000.0,101990.0,0.56282294]
[1762604184380,0.06973321,102000.0,101990.0,0.56282294]
[1762604184595,0.06973321,102000.0,101990.0,0.56382294]
[1762604186172,0.04862321,102000.0,101990.0,0.56382294]
[1762604186572,0.02598321,102000.0,101990.0,0.56382294]
[1762604187274,0.01363702,102000.0,101990.0,0.80894294]
[1762604187473,0.00014702,102000.0,101990.0,0.80894294]
[1762604187980,0.01284702,102000.0,101990.0,0.80894294]
[1762604188167,0.01284702,102000.0,101990.0,0.56382294]
[1762604188368,0.01284702,102000.0,101990.0,0.80894294]
[1762604188676,0.05500702,102000.0,101990.0,0.56382294]
[1762604190977,0.05500702,102000.0,101990.0,0.80894294]
[1762604191169,0.05500702,102000.0,101990.0,0.56382294]
[1762604191370,0.05500702,102000.0,101990.0,0.80894294]
[1762604191881,0.01284702,102000.0,101990.0,0.80894294]
[1762604192578,0.01284702,102000.0,101990.0,0.56382294]
[1762604192883,0.03398702,102000.0,101990.0,0.56382294]
[1762604193080,0.05500702,102000.0,101990.0,0.56382294]
[1762604195479,0.03398702,102000.0,101990.0,0.56382294]
[1762604195674,0.03398702,102000.0,101990.0,0.80894294]
[1762604195984,0.00014702,102000.0,101990.0,0.80894294]
[1762604196181,0.00014702,102000.0,101990.0,0.56382294]
[1762604196372,0.00014702,102000.0,101990.0,0.80894294]
[1762604196572,0.10280012,102010.0,101990.0,0.90704574]
[1762604196773,0.10280012,102010.0,102000.0,0.56281324]
[1762604198184,0.15490256,102010.0,102000.0,0.56281324]
[1762604198985,0.15590256,102010.0,102000.0,0.56281324]
[1762604199184,0.15590256,102010.0,102000.0,0.4588931]
[1762604199380,0.25398606,102010.0,102000.0,0.4588931]
[1762604199682,0.92318201,102010.0,102000.0,0.3608]
[1762604199985,0.92418201,102010.0,102000.0,0.4588931]
[1762604200186,0.92418201,102010.0,102000.0,0.3608]
[1762604201382,0.05486,102000.0,101990.0,0.45904302]
[1762604201684,0.08976487,102000.0,101990.0,0.45904982]
[1762604201876,0.24578745,102000.0,101990.0,0.36094702]
[1762604202079,0.21088258,102000.0,101990.0,0.36094702]
[1762604202277,0.15878014,102000.0,101990.0,0.36094702]
[1762604202477,0.22844588,102000.0,101990.0,0.36094702]
[1762604202678,0.82844588,102000.0,101990.0,0.00014702]
[1762604202879,0.58924588,102000.0,101990.0,0.00014702]
[1762604203086,0.48532574,102000.0,101990.0,0.00014702]
[1762604203388,0.48532574,102000.0,101990.0,0.00114702]
[1762604203785,0.58924588,102000.0,101990.0,0.00114702]
[1762604205183,0.51958014,102000.0,101990.0,0.00114702]
[1762604205684,0.58924588,102000.0,101990.0,0.00114702]
[1762604206279,0.05862,101990.0,101980.0,0.05645]
[1762604206484,0.57565528,101990.0,101980.0,0.05645]
[1762604207093,0.47173514,101990.0,101980.0,0.05645]
[1762604207589,0.11093514,101990.0,101980.0,0.1555624]
[1762604209589,0.14579744,101990.0,101980.0,0.1555624]
[1762604209889,0.14579744,101990.0,101980.0,0.05745]
[1762604210291,0.24390014,101990.0,101980.0,0.05745]
[1762604210678,0.24390014,101990.0,101980.0,0.1555624]
[1762604211083,0.24259751,101990.0,101980.0,0.1563024]
[1762604211392,0.24259751,101990.0,101980.0,0.05745]
[1762604211894,0.34651765,101990.0,101980.0,0.05745]
[1762604212088,0.31165535,101990.0,101980.0,0.05745]
[1762604212293,0.34650294,101990.0,101980.0,0.05745]
[1762604213088,0.31165535,101990.0,101980.0,0.05745]
[1762604213290,0.34649816,101990.0,101980.0,0.05745]
[1762604213691,0.34649816,101990.0,101980.0,0.1555624]
[1762604213990,0.31165535,101990.0,101980.0,0.05893]
[1762604214186,0.20773521,101990.0,101980.0,0.05893]
[1762604214381,0.20773521,101990.0,101980.0,0.1570424]
[1762604214988,0.24257388,101990.0,101980.0,0.05893]
[1762604215190,0.24257388,101990.0,101980.0,0.05819]
[1762604215395,0.24257388,101990.0,101980.0,0.05745]
[1762604216192,0.24257388,101990.0,101980.0,0.1555624]
[1762604216398,0.24257388,101990.0,101980.0,0.05819]
[1762604216889,0.24257388,101990.0,101980.0,0.05745]
[1762604217091,0.60337388,101990.0,101980.0,0.05745]
[1762604217692,0.56853521,101990.0,101980.0,0.05745]
[1762604218088,0.67245535,101990.0,101980.0,0.05745]
[1762604218884,0.67245535,101990.0,101980.0,0.1555624]
[1762604219195,0.56853521,101990.0,101980.0,0.1555624]
[1762604219401,0.56853521,101990.0,101980.0,0.05745]
[1762604219602,0.62014021,101990.0,101980.0,0.05745]
[1762604221192,0.05738,101950.0,101940.0,0.3608]
[1762604221393,0.34651734,101950.0,101940.0,0.3608]
[1762604221593,0.05738,101940.0,101930.0,0.38353]
[1762604221902,0.05738,101930.0,101920.0,0.38353]
[1762604222198,0.21354574,101930.0,101920.0,0.3608]
[1762604222504,0.24830732,101930.0,101920.0,0.3608]
[1762604222704,0.14438718,101930.0,101920.0,0.3608]
[1762604223004,0.24254768,101930.0,101920.0,0.3608]
[1762604223192,0.2077861,101930.0,101920.0,0.3608]
[1762604223389,0.34643804,101930.0,101920.0,0.3608]
[1762604223592,0.34643804,101930.0,101910.0,0.45912542]
[1762604223593,0.1555502,101920.0,101910.0,0.50507542]
[1762604223796,0.19028072,101920.0,101910.0,0.50507542]
[1762604224305,0.1555502,101920.0,101910.0,0.50507542]
[1762604225195,0.05738,101920.0,101910.0,0.50507542]
[1762604225502,0.05738,101920.0,101910.0,0.50607542]
[1762604225696,0.05738,101920.0,101910.0,0.50707542]
[1762604225895,0.05738,101920.0,101910.0,0.40889702]
[1762604226095,0.16130014,101920.0,101910.0,0.00214702]
[1762604226501,0.60907626,101920.0,101910.0,0.00214702]
[1762604228402,0.45291052,101920.0,101910.0,0.00214702]
[1762604228902,0.50515612,101920.0,101910.0,0.00214702]
[1762604229108,0.67113017,101920.0,101910.0,0.00214702]
[1762604229309,0.67113017,101920.0,101890.0,0.38353]
[1762604229310,0.05738,101900.0,101890.0,0.38353]
[1762604229621,0.05738,101900.0,101890.0,0.3608]
[1762604229995,0.05738,101890.0,101880.0,0.40685698]
[1762604230197,0.1555791,101890.0,101880.0,0.50506568]
[1762604231108,0.15571972,101900.0,101890.0,0.1571591]
[1762604231702,0.15571972,101900.0,101890.0,0.1441491]
[1762604232010,0.15571972,101900.0,101890.0,0.1481491]
[1762604233107,0.15571972,101900.0,101890.0,0.04995]
[1762604233305,0.15571972,101900.0,101890.0,0.05395]
[1762604234414,0.15571972,101900.0,101890.0,0.008]
[1762604234710,0.15571972,101900.0,101890.0,0.152149]
[1762604236003,0.15571972,101900.0,101890.0,0.512949]
[1762604236398,0.04471702,101900.0,101890.0,0.525959]
[1762604237004,0.05752702,101900.0,101890.0,0.512949]
[1762604238201,0.05752702,101900.0,101890.0,0.525959]
[1762604238407,0.04471702,101900.0,101890.0,0.525959]
[1762604238910,0.15571642,101900.0,101890.0,0.525959]
[1762604239104,0.15571642,101900.0,101890.0,0.5259591]
[1762604241011,0.04471702,101900.0,101890.0,0.5259591]
[1762604242021,0.00014702,101900.0,101890.0,0.5259591]
[1762604242315,0.00014702,101900.0,101890.0,0.65611818]
[1762604243818,0.1427442,101920.0,101910.0,0.1569898]
[1762604244013,0.1427442,101920.0,101910.0,0.5177898]
[1762604244212,0.04457,101920.0,101910.0,0.5177898]
[1762604244412,0.4717745,101930.0,101920.0,0.1571301]
[1762604244413,0.1555413,101930.0,101920.0,0.1571301]
[1762604244822,0.00014702,101940.0,101930.0,0.1536805]
[1762604245009,0.41813052,101960.0,101950.0,0.05245]
[1762604245205,0.05765,101960.0,101950.0,0.05245]
[1762604245520,0.1557816,101960.0,101950.0,0.1570012]
[1762604245909,0.05765,101960.0,101950.0,0.5178012]
[1762604246111,0.0226,101960.0,101950.0,0.5178012]
[1762604246616,0.50661314,101970.0,101960.0,0.1536316]
[1762604246617,0.41680702,101970.0,101960.0,0.1536316]
[1762604247121,0.05600702,101970.0,101960.0,0.5144316]
[1762604247323,0.04319702,101970.0,101960.0,0.5144316]
[1762604248211,0.04419702,101970.0,101960.0,0.5144316]
[1762604248610,0.04519702,101970.0,101960.0,0.5144316]
[1762604251711,0.05827702,101970.0,101960.0,0.0555]
[1762604251913,0.05613,101960.0,101950.0,0.4163]
[1762604252113,0.05613,101950.0,101940.0,0.40353702]
[1762604252523,0.54708908,101950.0,101940.0,0.00014702]
[1762604252716,0.5818196,101950.0,101940.0,0.00014702]
[1762604252911,0.45166052,101950.0,101940.0,0.02125702]
[1762604253115,0.09086052,101950.0,101940.0,0.50168792]
[1762604253328,0.18900172,101950.0,101940.0,0.51334792]
[1762604253725,0.07778052,101950.0,101940.0,0.51334792]
[1762604253927,0.03473052,101950.0,101940.0,0.51334792]
[1762604254228,0.54979832,101960.0,101950.0,0.1536412]
[1762604254522,0.24124392,101960.0,101950.0,0.1536412]
[1762604254721,0.18899832,101960.0,101950.0,0.1536412]
[1762604255022,0.24124392,101960.0,101950.0,0.1536412]
[1762604255429,0.18899832,101960.0,101950.0,0.1536412]
[1762604255826,0.19099832,101960.0,101950.0,0.1536412]
[1762604256225,0.19299832,101960.0,101950.0,0.1536412]
[1762604258025,0.19299832,101960.0,101950.0,0.04259]
[1762604258227,0.6839574,101960.0,101940.0,0.46875072]
[1762604258432,0.05613,101950.0,101940.0,0.50168072]
[1762604259521,0.64523028,101950.0,101940.0,0.00014702]
[1762604259730,0.6799608,101950.0,101940.0,0.00014702]
[1762604259932,0.54980172,101950.0,101940.0,0.14088792]
[1762604260126,0.55080172,101950.0,101940.0,0.15054792]
[1762604260529,0.55080172,101950.0,101940.0,0.14088792]
[1762604261230,0.55180172,101950.0,101940.0,0.14088792]
[1762604263336,0.55180172,101950.0,101940.0,0.15054792]
[1762604264233,0.5170712,101950.0,101940.0,0.14088792]
[1762604264437,0.5170712,101950.0,101940.0,0.00014702]
[1762604264731,0.64723028,101950.0,101940.0,0.00014702]
[1762604266133,0.5170712,101950.0,101940.0,0.14070792]
[1762604266437,0.5170712,101950.0,101940.0,0.15374792]
[1762604266732,0.5039912,101950.0,101940.0,0.15374792]
[1762604267138,0.5171912,101950.0,101940.0,0.15374792]
[1762604268529,0.5171912,101950.0,101940.0,0.14070792]
[1762604268840,0.5171912,101950.0,101940.0,0.04255702]
[1762604269028,0.5171912,101950.0,101940.0,0.14070782]
[1762604269534,0.5171912,101950.0,101940.0,0.15356782]
[1762604269832,0.2086368,101950.0,101940.0,0.51436782]
[1762604270334,0.1563912,101950.0,101940.0,0.51436782]
[1762604271228,0.2086368,101950.0,101940.0,0.51436782]
[1762604275942,0.2086368,101950.0,101940.0,0.04255702]
[1762604276241,0.5694368,101950.0,101940.0,0.14274782]
[1762604277141,0.5171912,101950.0,101940.0,0.14274782]
[1762604277736,0.5171912,101950.0,101940.0,0.09829782]
[1762604278038,0.5171912,101950.0,101940.0,0.00014702]
[1762604278237,0.01293,101930.0,101920.0,0.1429794]
[1762604278443,0.28411258,101930.0,101920.0,0.1429794]
[1762604278631,0.56707917,101930.0,101920.0,0.1429794]
[1762604279434,0.5147535,101930.0,101920.0,0.1449794]
[1762604279641,0.56708459,101930.0,101920.0,0.1469794]
[1762604280339,0.56708459,101930.0,101920.0,0.04881]
[1762604280643,0.20728159,101930.0,101920.0,0.5057801]
[1762604281238,0.20828159,101930.0,101920.0,0.5037801]
[1762604282543,0.20828159,101930.0,101920.0,0.04481]
[1762604282843,0.56908159,101930.0,101920.0,0.04481]
[1762604283241,0.5167505,101930.0,101920.0,0.04481]
[1762604283835,0.5167505,101930.0,101920.0,0.1429801]
[1762604284140,0.56909946,101930.0,101920.0,0.1429801]
[1762604284448,0.05579,101920.0,101910.0,0.40575702]
[1762604284642,0.65372871,101920.0,101910.0,0.00014702]
[1762604284837,0.05579,101900.0,101890.0,0.4804734]
[1762604285042,0.05233739,101900.0,101890.0,0.5150334]
[1762604285238,0.09519739,101910.0,101900.0,0.1569494]
[1762604285435,0.09519739,101910.0,101900.0,0.5177494]
[1762604286741,0.09519739,101910.0,101900.0,0.5197494]
[1762604287136,0.04286,101910.0,101900.0,0.5197494]
[1762604287646,0.04286,101910.0,101900.0,0.5217494]
[1762604287945,0.02159,101910.0,101900.0,0.5217494]
[1762604288145,0.56725301,101920.0,101910.0,0.1569397]
[1762604289242,0.09534441,101920.0,101910.0,0.1569397]
[1762604289547,0.09634441,101920.0,101910.0,0.5177397]
[1762604289743,0.15510712,101920.0,101910.0,0.5037897]
[1762604289949,0.15510712,101920.0,101910.0,0.5177397]
[1762604290247,0.04400702,101920.0,101910.0,0.5177397]
[1762604290437,0.04500702,101920.0,101910.0,0.5177397]
[1762604291947,0.02373702,101920.0,101910.0,0.5177397]
[1762604292249,0.04500702,101920.0,101910.0,0.5177397]
[1762604292940,0.15610712,101920.0,101910.0,0.04481]
[1762604293244,0.20844451,101920.0,101910.0,0.04481]
[1762604293434,0.20844451,101920.0,101910.0,0.1429897]
[1762604293632,0.15610712,101920.0,101910.0,0.5177397]
[1762604293835,0.04500702,101920.0,101910.0,0.5177397]
[1762604294244,0.17801626,101920.0,101910.0,0.5177397]
[1762604294446,0.07984616,101920.0,101910.0,0.5177397]
[1762604295639,0.03698616,101920.0,101910.0,0.64789878]
[1762604295839,0.00214702,101920.0,101910.0,0.64789878]
[1762604296240,0.00214702,101920.0,101910.0,0.5177397]
[1762604296642,0.04500702,101920.0,101910.0,0.5177397]
[1762604296949,0.00214702,101920.0,101910.0,0.5177397]
[1762604298951,0.00114702,101920.0,101910.0,0.5177397]
[1762604299153,0.00014702,101920.0,101910.0,0.5187397]
[1762604300352,0.00014702,101920.0,101910.0,0.64889878]
[1762604301145,0.03498616,101920.0,101910.0,0.64889878]
[1762604301345,0.03498616,101920.0,101910.0,0.5187397]
[1762604302353,0.03498616,101920.0,101910.0,0.62283399]
[1762604304345,0.03498616,101920.0,101910.0,0.5187397]
[1762604304546,0.03498616,101920.0,101910.0,0.62282832]
[1762604306152,0.03483914,101920.0,101910.0,0.62282832]
[1762604306455,0.01140966,101920.0,101910.0,0.62282832]
[1762604307346,0.01140966,101920.0,101910.0,0.5187397]
[1762604307546,0.01140966,101920.0,101910.0,0.62282832]
[1762604308347,0.10806705,101920.0,101910.0,0.5187397]
[1762604308548,0.20623715,101920.0,101910.0,0.5187397]
[1762604308855,0.10806705,101920.0,101910.0,0.5187397]
[1762604309048,0.06374705,101920.0,101910.0,0.62282832]
[1762604309657,0.05233739,101920.0,101910.0,0.62282832]
[1762604314458,0.02876086,101920.0,101910.0,0.62282832]
[1762604316969,0.00014702,101930.0,101920.0,0.0566]
[1762604317171,0.06980783,101930.0,101920.0,0.61965872]
[1762604317560,0.06980783,101930.0,101920.0,0.5155701]
[1762604317759,0.06980783,101930.0,101920.0,0.61965872]
[1762604319270,0.07180783,101930.0,101920.0,0.61965872]
[1762604319679,0.00214702,101930.0,101920.0,0.61965872]
[1762604320066,0.00114702,101930.0,101920.0,0.61965872]
[1762604320274,0.00014702,101930.0,101920.0,0.62065872]
[1762604320768,0.04446702,101930.0,101920.0,0.62065872]
[1762604321362,0.02185702,101930.0,101920.0,0.62065872]
[1762604326668,0.18985481,101950.0,101940.0,0.1525509]
[1762604326865,0.142464,101950.0,101940.0,0.1525509]
[1762604327068,0.04432,101950.0,101940.0,0.1525509]
[1762604327764,0.04432,101950.0,101940.0,0.61743952]
[1762604328165,0.54663402,101960.0,101950.0,0.1553112]
[1762604328373,0.15553402,101960.0,101950.0,0.5161112]
[1762604329073,0.22519483,101960.0,101950.0,0.5161112]
[1762604329268,0.12705783,101960.0,101950.0,0.1558612]
[1762604329475,0.11712783,101960.0,101950.0,0.5166612]
[1762604329676,0.12012783,101960.0,101950.0,0.62074982]
[1762604329874,0.05046702,101960.0,101950.0,0.62074982]
[1762604330074,0.02819702,101960.0,101950.0,0.62074982]
[1762604330263,0.02519702,101960.0,101950.0,0.62074982]
[1762604330463,0.04846702,101960.0,101950.0,0.5166612]
[1762604330974,0.04546702,101960.0,101950.0,0.5166612]
[1762604331176,0.04646702,101960.0,101950.0,0.5166612]
[1762604332576,0.04646702,101960.0,101950.0,0.1558612]
[1762604332771,0.14459862,101960.0,101950.0,0.1558612]
[1762604332976,0.14459862,101960.0,101950.0,0.5166612]
[1762604334470,0.19691224,101960.0,101950.0,0.5166612]
[1762604336376,0.23177829,101960.0,101950.0,0.5166612]
[1762604337378,0.17946467,101960.0,101950.0,0.5166612]
[1762604338181,0.08133307,101960.0,101950.0,0.5166612]
[1762604338473,0.08133307,101960.0,101950.0,0.62074982]
[1762604338674,0.03701307,101960.0,101950.0,0.62074982]
[1762604340271,0.08003307,101960.0,101950.0,0.62074982]
[1762604341278,0.08003307,101960.0,101950.0,0.5166612]
[1762604341484,0.07903307,101960.0,101950.0,0.5166612]
[1762604341976,0.07803307,101960.0,101950.0,0.5176612]
[1762604344479,0.07803307,101960.0,101950.0,0.62174982]
[1762604345483,0.03501307,101960.0,101950.0,0.62174982]
[1762604346574,0.08717967,101970.0,101960.0,0.1562216]
[1762604346776,0.03486605,101970.0,101960.0,0.62111022]
[1762604346980,0.08717967,101970.0,101960.0,0.62111022]
[1762604347278,0.05646605,101980.0,101970.0,0.05747]
[1762604347579,0.07788605,101980.0,101970.0,0.516392]
[1762604348779,0.07988605,101980.0,101970.0,0.516392]
[1762604349374,0.07788605,101980.0,101970.0,0.517392]
[1762604349883,0.07988605,101980.0,101970.0,0.517392]
[1762604350384,0.07788605,101980.0,101970.0,0.517392]
[1762604351582,0.17599835,101980.0,101970.0,0.517392]
[1762604353885,0.17599835,101980.0,101970.0,0.62148062]
[1762604354375,0.22831197,101980.0,101970.0,0.62148062]
[1762604355084,0.20689197,101980.0,101970.0,0.62148062]
[1762604355284,0.08717967,101980.0,101970.0,0.62148062]
[1762604355479,0.08727771,101990.0,101980.0,0.0981124]
[1762604355686,0.10890597,101990.0,101980.0,0.62071102]
[1762604356079,0.07401166,101990.0,101980.0,0.62071102]
[1762604356382,0.10891084,101990.0,101980.0,0.62071102]
[1762604356584,0.10991084,101990.0,101980.0,0.62071102]
[1762604358189,0.11091084,101990.0,101980.0,0.62071102]
[1762604358388,0.08931084,101990.0,101980.0,0.62071102]
[1762604358894,0.03699722,101990.0,101980.0,0.62071102]
[1762604359188,0.08001722,101990.0,101980.0,0.5166224]
[1762604359378,0.14622084,101990.0,101980.0,0.5166224]
[1762604359693,0.11132166,101990.0,101980.0,0.41851]
[1762604359892,0.11132166,101990.0,101980.0,0.40564]
[1762604360087,0.11032166,101990.0,101980.0,0.40564]
[1762604360885,0.10932166,101990.0,101980.0,0.40664]
[1762604361479,0.10932166,101990.0,101980.0,0.40564]
[1762604361675,0.16209666,101990.0,101980.0,0.3608]
[1762604361886,0.1550224,101980.0,101970.0,0.04484]
[1762604362089,0.68968705,101980.0,101970.0,0.04484]
[1762604363179,0.61991102,101980.0,101970.0,0.04484]
[1762604363590,0.70671948,101980.0,101970.0,0.04484]
[1762604364081,0.70671948,101980.0,101970.0,0.04584]
[1762604364484,0.60263086,101980.0,101970.0,0.04584]
[1762604364686,0.70664617,101980.0,101970.0,0.04584]
[1762604364985,0.81066148,101980.0,101970.0,0.04584]
[1762604365293,0.81266148,101980.0,101970.0,0.04484]
[1762604365689,0.70864617,101980.0,101970.0,0.04484]
[1762604365891,0.81266148,101980.0,101970.0,0.04484]
[1762604367692,0.70864617,101980.0,101970.0,0.04484]
[1762604367995,0.05695,101970.0,101960.0,0.50324762]
[1762604368194,0.23076383,101970.0,101960.0,0.50324762]
[1762604369289,0.23076383,101970.0,101960.0,0.60726293]
[1762604369592,0.11390852,101970.0,101960.0,0.62018293]
[1762604369794,0.0964671,101970.0,101960.0,0.62018293]
[1762604370195,0.0964671,101970.0,101960.0,0.62118293]
[1762604370395,0.20048241,101970.0,101960.0,0.62118293]
[1762604370797,0.0964671,101970.0,101960.0,0.62118293]
[1762604372388,0.0964671,101970.0,101960.0,0.51716762]
[1762604372588,0.1093071,101970.0,101960.0,0.62118293]
[1762604372998,0.1093071,101970.0,101960.0,0.52305233]
[1762604373298,0.21332241,101970.0,101960.0,0.52305233]
[1762604373898,0.21332241,101970.0,101960.0,0.62118393]
[1762604374702,0.21332241,101970.0,101960.0,0.52305233]
[1762604375499,0.21332241,101970.0,101960.0,0.62118393]
[1762604377296,0.1945891,101970.0,101960.0,0.62118393]
[1762604377502,0.29860441,101970.0,101960.0,0.62118393]
[1762604379295,0.29860441,101970.0,101960.0,0.51716862]
[1762604379595,0.1945891,101970.0,101960.0,0.62118393]
[1762604379803,0.29860441,101970.0,101960.0,0.62118393]
[1762604381305,0.1945891,101970.0,101960.0,0.62118393]
[1762604385209,0.0964671,101970.0,101960.0,0.62118393]
[1762604385908,0.0523571,101970.0,101960.0,0.72519924]
[1762604386413,0.0754471,101970.0,101960.0,0.72519924]
[1762604387216,0.0978971,101970.0,101960.0,0.72519924]
[1762604388528,0.0523571,101970.0,101960.0,0.72519924]
[1762604388828,0.08729883,101970.0,101960.0,0.72519924]
[1762604390229,0.0523571,101970.0,101960.0,0.72519924]
[1762604392425,0.0978971,101970.0,101960.0,0.51716862]
[1762604392620,0.04554,101970.0,101960.0,0.72519924]
[1762604393731,0.04554,101970.0,101960.0,0.62118393]
[1762604394127,0.16242531,101970.0,101960.0,0.50424862]
[1762604394333,0.33034583,101970.0,101960.0,0.50424862]
[1762604395226,0.33034583,101970.0,101960.0,0.02172702]
[1762604395427,0.67494198,101970.0,101960.0,0.00114702]
[1762604395930,0.67594198,101970.0,101960.0,0.00014702]
[1762604396116,0.67694198,101970.0,101960.0,0.02175702]
[1762604397732,0.67694198,101970.0,101960.0,0.14159862]
[1762604398327,0.74788541,101970.0,101960.0,0.14159862]
[1762604398633,0.74888541,101970.0,101960.0,0.14159862]
[1762604399730,0.74888541,101970.0,101960.0,0.04346702]
[1762604399932,0.33449074,101970.0,101960.0,0.16010233]
[1762604400323,0.33449074,101970.0,101960.0,0.04346702]
[1762604400821,0.33449074,101970.0,101960.0,0.14159862]
[1762604401021,0.33449074,101970.0,101960.0,0.04346702]
[1762604401431,0.79930605,101970.0,101940.0,0.36933]
[1762604401638,0.79930605,101970.0,101940.0,0.04332]
[1762604401639,0.32761994,101950.0,101940.0,0.04332]
[1762604401830,0.68841994,101950.0,101940.0,0.04332]
[1762604402225,0.68841994,101950.0,101930.0,0.40412]
[1762604402226,0.05672,101940.0,101930.0,0.40412]
[1762604402534,0.23059694,101940.0,101930.0,0.5022805]
[1762604402737,0.32874784,101940.0,101930.0,0.5149005]
[1762604403035,0.32874784,101940.0,101930.0,0.61891581]
[1762604403530,0.38232702,101950.0,101940.0,0.1414709]
[1762604403737,0.05251828,101950.0,101940.0,0.72099152]
[1762604403938,0.08743652,101950.0,101940.0,0.72099152]
[1762604404822,0.10881652,101950.0,101940.0,0.72099152]
[1762604405025,0.13089652,101950.0,101940.0,0.5129609]
[1762604405241,0.13089652,101950.0,101940.0,0.72099152]
[1762604405732,0.13089652,101950.0,101940.0,0.72199152]
[1762604406932,0.03506526,101950.0,101940.0,0.72199152]
[1762604407840,0.00014702,101950.0,101940.0,0.72199152]
[1762604408230,0.03506526,101950.0,101940.0,0.72199152]
[1762604409722,0.08743652,101950.0,101940.0,0.72199152]
[1762604410633,0.13089652,101950.0,101940.0,0.72199152]
[1762604411540,0.10881652,101950.0,101940.0,0.72199152]
[1762604411941,0.13089652,101950.0,101940.0,0.72199152]
[1762604412338,0.10881652,101950.0,101940.0,0.72199152]
[1762604413741,0.14342652,101950.0,101940.0,0.5139609]
[1762604413937,0.4146801,101950.0,101940.0,0.02261]
[1762604414142,0.20664948,101950.0,101940.0,0.001]
[1762604414343,0.32815516,101950.0,101940.0,0.001]
[1762604414540,0.68895516,101950.0,101940.0,0.001]
[1762604415044,0.72310884,101950.0,101940.0,0.001]
[1762604415240,0.8099173,101950.0,101940.0,0.001]
[1762604415436,0.05672,101930.0,101920.0,0.52090233]
[1762604415641,0.21310169,101930.0,101920.0,0.52090233]
[1762604415946,0.21310169,101930.0,101920.0,0.41688702]
[1762604417246,0.21310169,101930.0,101920.0,0.41788702]
[1762604417747,0.21310169,101930.0,101920.0,0.40526702]
[1762604419544,0.10908638,101930.0,101920.0,0.40526702]
[1762604419736,0.19562059,101930.0,101920.0,0.40526702]
[1762604420342,0.19562059,101930.0,101920.0,0.50928233]
[1762604420746,0.19562059,101930.0,101920.0,0.40526702]